Cogmind - Beta 13 @@@ ROGUE MODE // 2024.04.19 @ 21:34:16 Player: opaguck Result: Destroyed by G-34 Mercenary with Small Laser Performance ------------- Evolutions (0) 0 Regions Visited (1) 200 Robots Destroyed (13) 65 Value Destroyed (339) 339 Prototype IDs (0) 0 Alien Tech Used (0) 0 Bonus (0) 0 TOTAL SCORE: 604 Bonus ------- None Cogmind --------- Core Integrity 0/250 Matter 175/300 Energy 265/265 System Corruption 0% Temperature Cool (6) Movement Walking (190) Ox1 Location -10/Materials Parts ------- > --- POWER (1) -------- Reinforced Ion Engine > --- PROPULSION (2) --- Aluminum Leg Aluminum Leg > --- UTILITY (2) ------ Small Storage Unit ECM Suite > --- WEAPON (2) ------- Assault Rifle Assault Rifle > --- INVENTORY (8) ---- Reinforced Ion Engine Light Treads Light Treads Wheel Weight Redist. System Datajack Peak State ------------ > --- POWER ------------ Reinforced Ion Engine > --- PROPULSION ------- Wheel Compact Wheel > --- UTILITY ---------- Small Storage Unit Weight Redist. System > --- WEAPON ----------- Assault Rifle Assault Rifle > --- INVENTORY -------- Reinforced Ion Engine Light Treads Light Treads Assault Rifle [Rating: 9] Favorites ----------- Power Reinforced Ion Engine Engine Reinforced Ion Engine Propulsion Wheel Leg Aluminum Leg Wheel Wheel Utility Small Storage Unit Device Weight Redist. System Storage Small Storage Unit Weapon Assault Rifle Energy Gun EM Pulse Gun Ballistic Gun Assault Rifle Build | -11 -10 ------- Run | Yrd Mat Slots Evolved . | . . Power . | . . Propulsion . | . . Utility . | . . Weapon . | . . Parts Attached 17 | 6 11 Power 3 | 1 2 Engine 3 | 1 2 Core . | . . Reactor . | . . Propulsion 6 | 2 4 Treads . | . . Leg 2 | . 2 Wheel 4 | 2 2 Hover . | . . Flight . | . . Utility 3 | 1 2 Device 2 | . 2 Storage 1 | 1 . Processor . | . . Hackware . | . . Protection . | . . Artifact . | . . Weapon 5 | 2 3 Energy Gun 2 | 2 . Energy Cannon . | . . Ballistic Gun 3 | . 3 Ballistic Cannon . | . . Launcher . | . . Special Weapon . | . . Impact Weapon . | . . Slashing Weapon . | . . Piercing Weapon . | . . Special Melee Weapon . | . . Unidentified Prototypes . | . . Parts Lost 6 | . 6 Power . | . . Propulsion 3 | . 3 Utility . | . . Weapon 3 | . 3 Highest Loss Streak 3 | . 3 To Critical Strikes . | . . Average Slot Usage (%) 85 | . 85 Engine 12 | . 12 Leg 7 | . 7 Wheel 18 | . 18 Device 7 | . 7 Storage 14 | . 14 Energy Gun 10 | . 10 Ballistic Gun 14 | . 14 Naked Turns . | . . Heaviest Build 19 | 12 19 Greatest Support 32 | 26 32 Greatest Overweight (x) 2 | . 2 Average Overweight (x) . | . . Largest Inventory Capacity 8 | 8 8 Average Capacity 7 | 7 8 Most Carried 7 | 3 7 Average Carried 4 | 1 4 Final Capacity 8 | 8 8 Final Carried 6 | 3 6 Class Distribution -------------------- 100% | Mutant Dominant Class ---------------- Mutant | -10/Materials Resources | -11 -10 ----------- Run | Yrd Mat Matter Collected 394 | 183 211 Remotely . | . . Salvage Created 367 | . 367 Parts 27 | . 27 Haulers Intercepted . | . . Recyclers Shooed . | . . Parts Field Recycled . | . . Retrieved Matter . | . . Parts Self-Destructed . | . . Prevented . | . . Kills | -11 -10 ------- Run | Yrd Mat Combat Hostiles Destroyed 10 | . 10 Guns 8 | . 8 AOE 2 | . 2 Classes Destroyed 4 | . 4 Operator 2 | . 2 Watcher 1 | . 1 Swarmer 3 | . 3 Grunt 7 | . 7 Best Kill Streak 4 | . 4 Combat Bots Only 3 | . 3 Max Kills in Single Turn 2 | . 2 Gunslinging . | . . Exploded 2 | . 2 Melee . | . . Uniques/NPCs Destroyed . | . . Combat | -11 -10 -------- Run | Yrd Mat Hostile Shots Fired 115 | . 115 Missed 34 | . 34 Damage Taken 935 | . 935 Core 252 | . 252 Absorbed by Shields . | . . Regen/Repaired (Parts) 87 | . 87 Core Remaining (%) 100 | 100 . Volleys Fired 55 | . 55 Largest 2 | . 2 Hottest 80 | . 80 Shots Fired 89 | . 89 Gun 89 | . 89 Cannon . | . . Launcher . | . . Special . | . . Kinetic 61 | . 61 Thermal . | . . Explosive . | . . Electromagnetic 28 | . 28 Robot Hit Streak 6 | . 6 Robot Miss Streak 4 | . 4 Penetration Max . | . . Secondary Targets . | . . Shots Hit Robots 54 | . 54 Core Hits 21 | . 21 Critical Kills . | . . Critical Parts Destroyed . | . . Critical Strikes . | . . Melee Attacks . | . . Impact . | . . Slashing . | . . Piercing . | . . Sneak Attacks . | . . Combat Hostiles . | . . Follow-up Attacks . | . . Damage Inflicted 863 | . 863 Guns 687 | . 687 Cannons . | . . Explosions 170 | . 170 Melee . | . . Ramming 6 | . 6 Kinetic 459 | . 459 Thermal 170 | . 170 Explosive . | . . Electromagnetic 228 | . 228 Impact . | . . Slashing . | . . Piercing . | . . Highest Corruption . | . . Average Corruption . | . . Corruption Purged . | . . Corruption Blocked . | . . Overload Shots . | . . Overflow Damage . | . . Projectiles . | . . Explosions . | . . Melee . | . . Knockbacks . | . . Impact . | . . Kinetic . | . . Secondary . | . . Self-Inflicted Damage 35 | . 35 Shots 1 | . 1 Rammed 1 | . 1 Targets Rammed 1 | . 1 Kicked . | . . Crushed . | . . Highest Temperature 124 | . 124 Average Temperature 51 | . 51 Received Heat Transfer 489 | . 489 Siege Activations . | . . Robots Corrupted . | . . Combat Hostiles . | . . Parts Fried 1 | . 1 Impact Corruptions . | . . Robots Melted . | . . Combat Hostiles . | . . Parts Melted . | . . Heat Transferred 200 | . 200 Parts Sabotaged . | . . Parts Stolen . | . . Parts Stripped . | . . Power Chain Reactions 2 | . 2 Alert | -11 -10 ------- Run | Yrd Mat Peak Influence 248 | . 248 Initial . | . . Average 119 | . 129 Maximum Alert Level 1 | . 1 Low Security (%) 82 | 100 81 Level 1 17 | . 18 Level 2 . | . . Level 3 . | . . Level 4 . | . . Level 5 . | . . High Security . | . . Max Security . | . . Squads Dispatched 3 | . 3 Investigation . | . . Extermination . | . . Reinforcement 3 | . 3 Assault . | . . Garrison . | . . Intercept . | . . Searches Triggered . | . . Construction Impeded . | . . Haulers Reinforced . | . . Active Scanning Responses . | . . Cargo Convoy Interrupts . | . . Stealth | -11 -10 --------- Run | Yrd Mat Distress Signals 2 | . 2 Communications Jammed . | . . Distress Signals . | . . Times Spotted 18 | . 18 Peak Tracking Total 4 | . 4 Tactical Retreats 2 | . 2 Traps | -11 -10 ------- Run | Yrd Mat Traps Triggered . | . . Indirectly . | . . Trap Hack Attempts . | . . Triggered . | . . Disarmed . | . . Reprogrammed . | . . Reused . | . . Traps Extracted . | . . Installed . | . . Triggered . | . . Machines | -11 -10 ---------- Run | Yrd Mat Machines Disabled 1 | . 1 Max in Single Turn 1 | . 1 Machines Repaired . | . . Machines Dismantled . | . . Machines Sabotaged . | . . Overloaded Fab Kills . | . . Hacking | -11 -10 --------- Run | Yrd Mat Machines Accessed 1 | . 1 Terminals . | . . Fabricators . | . . Repair Stations 1 | . 1 Recycling Units . | . . Scanalyzers . | . . Garrison Access . | . . Total Hacks 3 | . 3 Successful 2 | . 2 Failed 1 | . 1 Catastrophic . | . . Database Lockouts . | . . Manual 2 | . 2 Terminals . | . . Fabricators . | . . Repair Stations 3 | . 3 Recycling Units . | . . Scanalyzers . | . . Garrison Access . | . . Terminal Hacks . | . . Fabricator Hacks . | . . Repair Station Hacks 2 | . 2 Scan Component 1 | . 1 Repair 1 | . 1 Recycling Unit Hacks . | . . Scanalyzer . | . . Garrison Access Hacks . | . . Unauthorized Hacks . | . . Terminals . | . . Fabricators . | . . Repair Stations . | . . Recycling Units . | . . Scanalyzers . | . . Garrison Access . | . . Data Cores Recovered . | . . Used . | . . Hacking Detections 1 | . 1 Full Trace Events 1 | . 1 Feedback Events . | . . Feedback Blocked . | . . Robot Schematics Acquired . | . . Robots Built . | . . Authchips . | . . Time . | . . Total Robot Build Rating . | . . Part Schematics Acquired . | . . Parts Built . | . . Authchips . | . . Time . | . . Total Part Build Rating . | . . Parts Repaired 1 | . 1 Time 32 | . 32 Parts Recycled . | . . Recycled Matter . | . . Retrieved Matter . | . . Retrieved Components . | . . Parts Scanalyzed . | . . Part Schematics Acquired . | . . Parts Damaged . | . . Bothacking | -11 -10 ------------ Run | Yrd Mat Used RIF Installer . | . . Robots Hacked . | . . Non-combat . | . . Combat . | . . Robot Hacks Applied . | . . Relay Couplers Released . | . . Fabnet Peak Effective % . | . . Robots Rewired . | . . Allies Hacked . | . . Hacks Repelled . | . . Allies | -11 -10 -------- Run | Yrd Mat Total Allies . | . . Largest Group . | . . Highest-Rated Group . | . . Highest-Rated Ally . | . . Total Orders . | . . Ally Attacks . | . . Total Damage . | . . Kills . | . . Allies Corrupted . | . . Allies Melted . | . . Intel | -11 -10 ------- Run | Yrd Mat Robot Analysis Total . | . . Derelict Logs Recovered . | . . Drone Launches . | . . Drone Recoveries . | . . Exploration | -11 -10 ------------- Run | Yrd Mat Turns Passed 547 | 43 504 Spaces Moved 342 | 36 306 Core 6 | 2 4 Treads . | . . Legs 75 | . 75 Wheels 261 | 34 227 Hover . | . . Flight . | . . Fastest Speed 50 | 50 50 Average Speed 96 | 88 97 Slowest Speed 190 | 100 190 Overloaded Moves . | . . Propulsion Burnouts . | . . Robots Hopped . | . . Cave-ins Triggered . | . . Exploration Rate (%) 27 | 3 52 Regions Visited 1 Branch Regions . Pre-discovered Areas . | . . Known Exits Taken . | . . Unknown Exits Taken 1 | 1 . Scrap Searched . | . . Spaces Dug . | . . Terrain Destroyed 6 | . 6 Melee . | . . Projectile . | . . AOE 6 | . 6 Terrain Rammed . | . . Walls Destroyed . | . . Machines Disabled . | . . Actions | -11 -10 --------- Run | Yrd Mat Total 463 | 44 419 Wait 38 | . 38 Move 341 | 35 306 Hop . | . . Pick Up 9 | 3 6 Fast Attach 12 | 6 6 Attach 3 | . 3 Detach . | . . Swap 2 | . 2 Drop 2 | . 2 Fire 55 | . 55 Melee . | . . Ram 1 | . 1 Kick . | . . Crush . | . . Escape Stasis . | . . Rewire . | . . Trap . | . . Miscellaneous . | . . Route ------- -11/Scrapyard -10/Materials (discovered 2 exits: [*Mat] / [*Min]) History --------- Turn | Location | Event 16 | -11/Scrapyard | Discovered new exit (range 16) 44 | -11/Scrapyard | Entered Materials 140 | -10/Materials | Discovered new exit (range 13) 282 | -10/Materials | Lost 3 parts (1n2w) 343 | -10/Materials | Build established: Mutant 381 | -10/Materials | Repaired Rnf. Ion Engine 385 | -10/Materials | Core integrity fell below 50% 406 | -10/Materials | Core integrity fell below 20% 430 | -10/Materials | Discovered new exit (range 10) 548 | -10/Materials | Destroyed by G-34 Mercenary with Small Laser Last Messages --------------- 00398_ Wheel destroyed. 00405_ G-47 Trooper destroyed. 00409_ Acquired Rnf. Ion Engine. 00412_ Acquired Aluminum Leg. 00414_ Acquired 46 matter. 00418_ Acquired Aluminum Leg. 00430_ EXIT=FOUND 00432_ O-16 Technician: "IFF HANDSHAKE FAILED. SECURING TERMINAL." 00438_ ALERT: Hostiles spotted, dispatching reinforcements to Terminal M006. 00450_ O-16 Technician destroyed. 00454_ G-34 Mercenary destroyed. 00468_ Acquired 13 matter. 00470_ Acquired Datajack. 00471_ R-06 Scavenger collects Lgt. Ion Engine. 00508_ Assault Rifle destroyed. 00518_ Acquired Wheel. 00533_ Acquired ECM Suite. 00539_ G-34 Mercenary destroyed. Map ----- +----------------------------------------------------+ | | | ????????????????????????????? | | ????????????????????????????? | | ????????????????????????????? | | ????????????????????????????? | | ????????????????????????????? | | ????????????????????????????? | | ???????####?????????????????? | | ???????# #?????????????????? | | ???????# #?????????????????? | | ???????+ +?????????????????? | | ???????# ###########+####### | | ???????# ! | | ???????# ! | | ######## ! | | # ## ###########+### | | # " ## #???????? # | | #""" ## ##?????#* # | | #""" # #?????# ""# | | #""" [+ #?????#* T"# | | # ""g%# #?????# ""# | | #""" # #?????#| #||| | | #"" ## ##?????########||| | | #"" ## #?????????????#||| | | # " ## #?????????????# | | # @ ## ????????????? | | # ! ## ??????????? | | ############+?????????### | | ???????????? ???????????# | | ????????????? ??????????# | | ??????????????"?????????##### | | ????????????????????????????? | | ????????????????????????????? | | ????????????????????????????? | | ????????????????????????????? | | ????????????????????????????? | | ????????????????????????????? | | ????????????????????????????? | | ????????????????????????????? | | ????????????????????????????? | | ????????????????????????????? | | ????????????????????????????? | | ????????????????????????????? | | ??????????????????????????#?? | | ??????????????????????????# | | ??????????????????????????# | | ??????????????????????????# | | ??????????????????????????# | | ??????????????????????????# | | ??????????????????????????? | +----------------------------------------------------+ Best States ------------- Heat Dissipation 25 Energy Generation 12 Energy Capacity 265 Matter Stores 297 Matter Capacity 300 Sight Range 16 Terrain Scan Density 10 ECM Strength 1 Additional Mass Support 6 Evasion (%) 55 Item Schematics ----------------- None Robot Schematics ------------------ None Fabricated ------------ Nothing Alien Tech Used ----------------- None Achievements -------------- None Challenges ------------ None Game ------ Seed WeightDerelictAutohacker Manual? 0 Play Time 00:19:26 Cumulative 4.3 hours Start 2024.04.19 @ 21:09:57 End 2024.04.19 @ 21:34:16 Sessions 1 Manual Loads 0 Difficulty Rogue Special Mode None Game No. 4 Rogue 4 Adventurer 0 Explorer 0 Win Type - Total 0 Types 0/0/0/0/0/0/0/0/0 Lore% 5 Gallery% 8 Achievement% 10 Wizard Run 0 Options --------- Layout 1 ASCII 0 Keyboard 0 Movement Numpad Keybinds 0 Fullscreen 2 Font 24/Smallcaps Map View 50x35 Zoom Use 0% Tactical HUD 1 Map Filters NONE Filters NONE Steam 1 RUN: 73a507af-53d5-414e-b898-e130bfad5c3f